fUSD/lending_fUSD_20240825
["ID","MTS","AMOUNT","RATE_DAILY","PERIOD"]
[335929888,1724608245753,-2126.33256,0.0001078,2]
[335929891,1724608245763,-150.0,0.00010787,2]
[335929892,1724608245772,-1529.0076,0.0001079,2]
[335929894,1724608245781,-469.33497757,0.00010798,2]
[335929896,1724608245790,-216.87279016,0.00010799,2]
[335929898,1724608245800,-270.62814649,0.00010799,2]
[335929900,1724608245809,-27532.89619931,0.000108,2]
[335929902,1724608245818,-2316.28111925,0.000108,2]
[335929904,1724608245829,-150.0,0.00010808,2]
[335929906,1724608245838,-150.0,0.00010822,2]
[335929908,1724608245848,-185.41,0.00010822,2]
[335929910,1724608245857,-150.0,0.00010846,2]
[335929912,1724608245866,-253.22695752,0.00010852,2]
[335929914,1724608245875,-150.99,0.00010852,2]
[335929930,1724608246023,-1500.0,0.00010856,2]
[335929932,1724608246034,-35748.21411799,0.00010861,2]
[335929934,1724608246044,-241.54230122,0.00010861,2]
[335929936,1724608246054,-155.0,0.00010861,2]
[335929938,1724608246064,-155.57891253,0.00010861,2]
[335929940,1724608246075,-150.0,0.00010866,2]
[335929942,1724608246084,-150.0,0.0001087,2]
[335929944,1724608246094,-7535.64380383,0.00010899,2]
[335929946,1724608246103,-1058.69852512,0.00010899,2]
[335929948,1724608246112,-158.6483152,0.000109,2]
[335929950,1724608246121,-285.20473214,0.000109,2]
[335929952,1724608246131,-354.6886366,0.000109,2]
[335929954,1724608246140,-158.19368247,0.000109,2]
[335929956,1724608246149,-3587.97978596,0.000109,2]
[335929958,1724608246158,-229.6487844,0.00010919,2]
[335929960,1724608246167,-150.0,0.00010923,2]
[335929962,1724608246176,-1500.0,0.0001093,2]
[335929964,1724608246185,-150.0,0.00010932,2]
[335929966,1724608246195,-150.0,0.0001095,2]
[335929968,1724608246204,-351.585268,0.00010958,2]
[335929970,1724608246214,-311.270309,0.00010958,2]
[335929972,1724608246223,-522.441553,0.00010958,2]
[335929974,1724608246232,-162.945739,0.00010958,2]
[335929976,1724608246242,-183.746608,0.00010958,2]
[335929978,1724608246252,-606.37,0.00010958,2]
[335929980,1724608246261,-606.37,0.00010958,2]
[335929982,1724608246270,-606.37,0.00010958,2]
[335929984,1724608246279,-606.37,0.00010958,2]
[335929986,1724608246288,-606.37,0.00010958,2]
[335929988,1724608246297,-500.0,0.00010958,2]
[335929990,1724608246307,-500.0,0.00010958,2]
[335929992,1724608246319,-500.0,0.00010958,2]
[335929994,1724608246329,-500.0,0.00010958,2]
[335929996,1724608246338,-500.0,0.00010958,2]
[335929998,1724608246347,-151.32367669,0.00010958,2]
[335929999,1724608246356,-267.68844679,0.00010958,2]
[335930001,1724608246367,-500.0,0.00010958,2]
[335930004,1724608246378,-500.0,0.00010958,2]
[335930006,1724608246388,-598.88239859,0.00010958,2]
[335930008,1724608246397,-500.0,0.00010958,2]
[335930010,1724608246407,-500.0,0.00010958,2]
[335930012,1724608246418,-500.0,0.00010958,2]
[335930014,1724608246427,-500.0,0.00010958,2]
[335930016,1724608246436,-500.0,0.00010958,2]
[335930018,1724608246445,-500.0,0.00010958,2]
[335930020,1724608246455,-500.0,0.00010958,2]
[335930022,1724608246465,-355.73432531,0.00010958,2]
[335930024,1724608246474,-500.0,0.00010958,2]
[335930026,1724608246483,-500.0,0.00010958,2]
[335930028,1724608246492,-500.0,0.00010958,2]
[335930030,1724608246501,-500.0,0.00010958,2]
[335930032,1724608246511,-500.0,0.00010958,2]
[335930034,1724608246521,-500.0,0.00010958,2]
[335930036,1724608246532,-500.0,0.00010958,2]
[335930037,1724608246541,-500.0,0.00010958,2]
[335930039,1724608246551,-481.63078476,0.00010958,2]
[335930041,1724608246560,-627.64090878,0.00010958,2]
[335930043,1724608246569,-500.0,0.00010958,2]
[335930045,1724608246581,-500.0,0.00010958,2]
[335930047,1724608246590,-500.0,0.00010958,2]
[335930049,1724608246599,-500.0,0.00010958,2]
[335930051,1724608246608,-500.0,0.00010958,2]
[335930053,1724608246617,-500.0,0.00010958,2]
[335930055,1724608246626,-500.0,0.00010958,2]
[335930057,1724608246635,-325.43921824,0.00010958,2]
[335930059,1724608246644,-500.0,0.00010958,2]
[335930061,1724608246653,-500.0,0.00010958,2]
[335930063,1724608246662,-500.0,0.00010958,2]
[335930065,1724608246671,-500.0,0.00010958,2]
[335930067,1724608246680,-500.0,0.00010958,2]
[335930069,1724608246689,-500.0,0.00010958,2]
[335930071,1724608246698,-500.0,0.00010958,2]
[335930073,1724608246707,-500.0,0.00010958,2]
[335930075,1724608246716,-500.0,0.00010958,2]
[335930077,1724608246725,-1703.8,0.00010958,2]
[335930079,1724608246734,-500.0,0.00010958,2]
[335930081,1724608246743,-500.0,0.00010958,2]
[335930083,1724608246752,-500.0,0.00010958,2]
[335930085,1724608246761,-500.0,0.00010958,2]
[335930086,1724608246770,-500.0,0.00010958,2]
[335930088,1724608246780,-2153.6,0.00010958,2]
[335930090,1724608246789,-2153.6,0.00010958,2]
[335930092,1724608246798,-500.0,0.00010958,2]
[335930094,1724608246807,-500.0,0.00010958,2]
[335930096,1724608246817,-500.0,0.00010958,2]
[335930098,1724608246828,-500.0,0.00010958,2]
[335930100,1724608246838,-500.0,0.00010958,2]
[335930102,1724608246847,-500.0,0.00010958,2]
[335930104,1724608246857,-500.0,0.00010958,2]
[335930106,1724608246866,-500.0,0.00010958,2]
[335930108,1724608246875,-500.0,0.00010958,2]
[335930110,1724608246885,-500.0,0.00010958,2]
[335930112,1724608246894,-533.23,0.00010958,2]
[335930114,1724608246903,-533.23,0.00010958,2]
[335930116,1724608246913,-500.0,0.00010958,2]
[335930118,1724608246922,-500.0,0.00010958,2]
[335930120,1724608246931,-500.0,0.00010958,2]
[335930122,1724608246940,-500.0,0.00010958,2]
[335930124,1724608246950,-1905.36,0.00010958,2]
[335930126,1724608246959,-1905.36,0.00010958,2]
[335930128,1724608246969,-575.98,0.00010958,2]
[335930130,1724608246978,-598.05,0.00010958,2]
[335930132,1724608246988,-598.05,0.00010958,2]
[335930134,1724608247002,-500.0,0.00010958,2]
[335930136,1724608247011,-589.74,0.00010958,2]
[335930138,1724608247021,-561.31,0.00010958,2]
[335930140,1724608247030,-561.31,0.00010958,2]
[335930141,1724608247040,-500.0,0.00010958,2]
[335930143,1724608247049,-500.0,0.00010958,2]
[335930145,1724608247058,-500.0,0.00010958,2]
[335930147,1724608247069,-500.0,0.00010958,2]
[335930149,1724608247078,-644.37762194,0.00010958,2]
[335930151,1724608247088,-500.0,0.00010958,2]
[335930153,1724608247097,-190.70798889,0.00010958,2]
[335930155,1724608247106,-500.0,0.00010958,2]
[335930157,1724608247115,-500.0,0.00010958,2]
[335930158,1724608247124,-1850.17,0.00010958,2]
[335930160,1724608247133,-1850.17,0.00010958,2]
[335930162,1724608247143,-500.0,0.00010958,2]
[335930164,1724608247152,-500.0,0.00010958,2]
[335930166,1724608247161,-500.0,0.00010958,2]
[335930168,1724608247170,-500.0,0.00010958,2]
[335930170,1724608247179,-1619.74,0.00010958,2]
[335930172,1724608247188,-1619.74,0.00010958,2]
[335930174,1724608247197,-500.0,0.00010958,2]
[335930176,1724608247206,-500.0,0.00010958,2]
[335930178,1724608247215,-500.0,0.00010958,2]
[335930180,1724608247223,-500.0,0.00010958,2]
[335930182,1724608247232,-1993.22,0.00010958,2]
[335930184,1724608247241,-1993.22,0.00010958,2]
[335930185,1724608247250,-500.0,0.00010958,2]
[335930187,1724608247259,-500.0,0.00010958,2]
[335930189,1724608247268,-314.15734685,0.00010958,2]
[335930191,1724608247277,-500.0,0.00010958,2]
[335930193,1724608247286,-500.0,0.00010958,2]
[335930195,1724608247295,-500.0,0.00010958,2]
[335930197,1724608247304,-500.0,0.00010958,2]
[335930199,1724608247314,-721.53,0.00010958,2]
[335930201,1724608247323,-721.53,0.00010958,2]
[335930203,1724608247333,-963.24,0.00010958,2]
[335930205,1724608247342,-963.24,0.00010958,2]
[335930207,1724608247350,-301.45211106,0.00010958,2]
[335930209,1724608247359,-584.76,0.00010958,2]
[335930211,1724608247368,-584.76,0.00010958,2]
[335930213,1724608247377,-500.0,0.00010958,2]
[335930215,1724608247386,-326.9123704,0.00010958,2]
[335930217,1724608247395,-500.0,0.00010958,2]
[335930219,1724608247404,-500.0,0.00010958,2]
[335930221,1724608247413,-500.0,0.00010958,2]
[335930223,1724608247422,-500.0,0.00010958,2]
[335930225,1724608247431,-500.0,0.00010958,2]
[335930227,1724608247440,-500.0,0.00010958,2]
[335930229,1724608247449,-500.0,0.00010958,2]
[335930230,1724608247457,-151.98,0.00010959,2]
[335930232,1724608247467,-250.0,0.00010959,2]
[335930234,1724608247476,-1500.0,0.00010959,2]
[335930236,1724608247485,-1500.0,0.00010967,2]
[335930238,1724608247493,-600.46594123,0.00010973,2]
[335930240,1724608247503,-500.0,0.00010973,2]
[335930242,1724608247512,-200.0,0.00010973,2]
[335930244,1724608247521,-150.0,0.00010983,2]
[335930246,1724608247530,-150.85,0.00010987,2]
[335930248,1724608247539,-155.0,0.00010989,2]
[335930250,1724608247548,-187.0,0.0001099,2]
[335930252,1724608247557,-150.0,0.00010993,2]
[335930254,1724608247566,-150.0,0.00010997,2]
[335930256,1724608247575,-1703.8,0.00010997,2]
[335930258,1724608247584,-500.0,0.00010997,2]
[335930260,1724608247593,-500.0,0.00010997,2]
[335930262,1724608247601,-500.0,0.00010997,2]
[335930264,1724608247610,-575.98,0.00010997,2]
[335930265,1724608247619,-589.74,0.00010997,2]
[335930267,1724608247628,-500.0,0.00010997,2]
[335930269,1724608247638,-500.0,0.00010997,2]
[335930271,1724608247647,-500.0,0.00010997,2]
[335930273,1724608247657,-500.0,0.00010997,2]
[335930275,1724608247667,-516.2164006,0.00010997,2]
[335930277,1724608247676,-500.0,0.00010997,2]
[335930279,1724608247685,-500.0,0.00010997,2]
[335930281,1724608247694,-500.0,0.00010997,2]
[335930283,1724608247703,-500.0,0.00010997,2]
[335930285,1724608247712,-500.0,0.00010997,2]
[335930287,1724608247722,-500.0,0.00010997,2]
[335930289,1724608247731,-500.0,0.00010997,2]
[335930291,1724608247740,-500.0,0.00010997,2]
[335930293,1724608247750,-384.2324149,0.00010997,2]
[335930295,1724608247761,-500.0,0.00010997,2]
[335930297,1724608247771,-1000.0,0.00010998,2]
[335930299,1724608247782,-500.0,0.00010998,2]
[335930301,1724608247791,-606.37,0.00010998,2]
[335930303,1724608247801,-500.0,0.00010998,2]
[335930305,1724608247810,-500.0,0.00010998,2]
[335930307,1724608247819,-538.39,0.00010998,2]
[335930309,1724608247829,-500.0,0.00010998,2]
[335930311,1724608247838,-500.0,0.00010998,2]
[335930313,1724608247847,-500.0,0.00010998,2]
[335930315,1724608247857,-500.0,0.00010998,2]
[335930316,1724608247866,-500.0,0.00010998,2]
[335930318,1724608247875,-500.0,0.00010998,2]
[335930320,1724608247885,-8241.37147163,0.00010998,2]
[335930321,1724608248030,-12544.42144907,0.00010998,2]
[335930322,1724608248041,-2885.9467208,0.00010998,2]
[335930323,1724608248050,-500.0,0.00010998,2]
[335930324,1724608248059,-500.0,0.00010998,2]
[335930325,1724608248071,-500.0,0.00010998,2]
[335930326,1724608248081,-500.0,0.00010998,2]
[335930327,1724608248090,-500.0,0.00010998,2]
[335930328,1724608248099,-500.0,0.00010998,2]
[335930329,1724608248109,-500.0,0.00010998,2]
[335930330,1724608248118,-500.0,0.00010998,2]
[335930331,1724608248127,-1703.8,0.00010998,2]
[335930332,1724608248136,-500.0,0.00010998,2]
[335930333,1724608248145,-500.0,0.00010998,2]
[335930334,1724608248154,-500.0,0.00010998,2]
[335930335,1724608248164,-500.0,0.00010998,2]
[335930336,1724608248173,-284.97904612,0.00010998,2]
[335930337,1724608248184,-1430.54589821,0.00010998,2]
[335930338,1724608248195,-335.451,0.00010998,2]
[335930339,1724608248205,-102.62405567,0.00010998,2]
[335930340,1724608248214,-756.9687768,0.00010998,2]
[335930343,1724608254639,500.0,0.00010009,2]
[335930345,1724608264647,500.0,0.00010009,2]
[335930346,1724608326954,208313.0,0.00025,60]
[335930349,1724608541099,3250.63504208,0.00010009,2]
[335930350,1724608541121,10000.0,0.00010009,2]
[335930351,1724608541146,10000.0,0.00010009,2]
[335930352,1724608541168,10000.0,0.00010009,2]
[335930353,1724608541189,2497.57907591,0.00010009,2]
[335930355,1724608571682,500.0,0.00010009,2]
[335930357,1724608598244,200.0,9.913e-05,2]
[335930358,1724608612217,172.30751547,5e-05,2]
[335930360,1724608638758,760.79843827,0.00010009,2]
[335930361,1724608645423,412.35152068,0.00010009,2]
[335930362,1724608647208,693.93284973,0.00010009,2]
[335930363,1724608651553,3074.67589109,0.00010009,2]
[335930365,1724608654075,1270.23398053,0.00010009,2]
[335930366,1724608654645,500.0,0.00010009,2]
[335930367,1724608658709,291.90302489,0.00010009,2]
[335930369,1724608664418,16250.27322581,0.00010009,2]
[335930370,1724608664755,20417.05914824,0.00010009,2]
[335930371,1724608665849,159.22460451,0.00010009,2]
[335930372,1724608667596,174.49068,0.00010009,2]
[335930373,1724608668752,760.79843827,0.00010009,2]
[335930374,1724608672882,155.0,0.00010009,2]
[335930375,1724608680806,155.09465107,0.00010009,2]
[335930376,1724608682908,155.0,0.00010009,2]
[335930377,1724608684679,364.09,8.219e-05,2]
[335930378,1724608687341,1311.65694169,0.00010009,2]
[335930379,1724608693329,500.0,9.905e-05,2]
[335930380,1724608728552,3073.56727407,9.905e-05,2]
[335930381,1724608755668,13979.42,9.877e-05,2]
[335930383,1724608775763,16943.79219461,9.905e-05,2]
[335930384,1724608798209,429.95,9.873e-05,2]
[335930386,1724608810873,175.26,7.931e-05,2]
[335930387,1724608812085,889.69296972,9.877e-05,2]
[335930388,1724608839275,283.4363462,9.877e-05,2]
[335930389,1724608842423,186.21,9.867e-05,2]
[335930390,1724608855170,1000.0,9.867e-05,2]
[335930391,1724608858416,300.0,9.877e-05,2]
[335930392,1724608869771,19905.83476384,9.877e-05,2]
[335930395,1724608901774,760.79843827,9.877e-05,2]
[335930396,1724608907499,500.0,9.877e-05,2]
[335930397,1724608907865,500.0,9.877e-05,2]
[335930398,1724608908204,500.0,9.877e-05,2]
[335930399,1724608908535,500.0,9.877e-05,2]
[335930400,1724608908845,694.0,9.877e-05,2]
[335930401,1724608931763,760.79843827,9.877e-05,2]
[335930402,1724608933593,3393.94,9.866e-05,2]
[335930405,1724608980687,175.76,9.87e-05,2]
[335930409,1724609135652,514.73,9.865e-05,2]
[335930431,1724609160246,1236.61,9.852e-05,2]
[335930433,1724609180832,840.0,9.845e-05,2]
[335930436,1724609189281,1650.0,9.838e-05,2]
[335930441,1724609213882,427.56,8.219e-05,2]
[335930442,1724609215092,183.9,9.836e-05,2]
[335930443,1724609218747,1303.071494,9.976e-05,2]
[335930445,1724609221242,250.0,9.833e-05,2]
[335930446,1724609227687,255.3689167,0.00010009,2]
[335930448,1724609248296,619.94,9.839e-05,2]
[335930450,1724609294636,649.41,9.836e-05,2]
[335930452,1724609324145,175.26,7.868e-05,2]
[335930465,1724609391722,186.21,9.831e-05,2]
[335930473,1724609402689,151.08468512,7.868e-05,2]
[335930474,1724609409979,1075.78622899,9.537e-05,2]
[335930475,1724609413529,200.33,9.802e-05,2]
[335930476,1724609424796,236.34424982,9.537e-05,2]
[335930494,1724609431656,-306.25,0.00010026,2]
[335930496,1724609431667,-665.12228065,0.00010026,2]
[335930498,1724609431678,-658.25,0.00010026,2]
[335930499,1724609431690,-7455.56826183,0.00010026,2]
[335930500,1724609431700,-2505.40041835,0.00010026,2]
[335930501,1724609431709,-766.0,0.00010045,2]
[335930502,1724609431718,-300.0,0.00010058,2]
[335930503,1724609431728,-5694.47758203,0.00010059,2]
[335930504,1724609431739,-2026.65030258,0.00010059,2]
[335930505,1724609431750,-2540.03721539,0.00010059,2]
[335930506,1724609431759,-19256.84229478,0.00010148,2]
[335930507,1724609431768,-575.83046247,0.00010149,2]
[335930508,1724609431778,-5868.4654,0.00010159,2]
[335930509,1724609431787,-150.0,0.00010257,2]
[335930510,1724609431796,-4457.0,0.00010258,2]
[335930511,1724609431805,-213.79,0.00010259,2]
[335930512,1724609431815,-427.56,0.00010467,2]
[335930513,1724609431824,-348.28775749,0.00010471,2]
[335930514,1724609431836,-155.0,0.00010471,2]
[335930515,1724609431845,-155.0346522,0.00010505,2]
[335930516,1724609431855,-309.58879588,0.00010505,2]
[335930517,1724609431866,-419.57836223,0.00010505,2]
[335930518,1724609431876,-10538.92504884,0.00010566,2]
[335930519,1724609431886,-280.9936,0.0001068,2]
[335930520,1724609431897,-253.3627,0.0001068,2]
[335930521,1724609431907,-155.0,0.00010699,2]
[335930522,1724609431918,-499.99,0.00010713,2]
[335930523,1724609431928,-35748.21411799,0.00010713,2]
[335930524,1724609431939,-3879.82904589,0.00010713,2]
[335930525,1724609431948,-442.17900805,0.00010732,2]
[335930526,1724609431958,-150.0,0.0001074,2]
[335930527,1724609431967,-1500.0,0.00010773,2]
[335930528,1724609431977,-352.6593,0.00010777,2]
[335930529,1724609431986,-1500.0,0.00010779,2]
[335930530,1724609431998,-1500.0,0.00010795,2]
[335930531,1724609432007,-730.0594,0.000108,2]
[335930532,1724609432017,-2109.1916,0.000108,2]
[335930533,1724609432027,-15334.2502,0.000108,2]
[335930534,1724609432036,-268.0911,0.000108,2]
[335930535,1724609432045,-5583.0098,0.000108,2]
[335930536,1724609432056,-150.0,0.00010811,2]
[335930537,1724609432065,-150.0,0.00010814,2]
[335930538,1724609432074,-190.141,0.00010817,2]
[335930539,1724609432083,-443.266,0.00010817,2]
[335930540,1724609432093,-300.0,0.00010831,2]
[335930541,1724609432103,-1500.0,0.00010837,2]
[335930542,1724609432112,-300.0,0.00010844,2]
[335930543,1724609432122,-1500.0,0.00010845,2]
[335930544,1724609432131,-298.22213195,0.00010849,2]
[335930545,1724609432141,-1500.0,0.0001085,2]
[335930546,1724609432150,-155.99731579,0.00010852,2]
[335930547,1724609432159,-735.00114648,0.00010852,2]
[335930548,1724609432168,-155.80170695,0.00010852,2]
[335930549,1724609432178,-339.508,0.00010858,2]
[335930550,1724609432187,-383.1313,0.00010858,2]
[335930551,1724609432196,-150.0,0.0001086,2]
[335930552,1724609432205,-1500.0,0.0001086,2]
[335930553,1724609432214,-160.16824089,0.00010861,2]
[335930554,1724609432231,-950.05519542,0.00010861,2]
[335930555,1724609432243,-150.0,0.00010863,2]
[335930556,1724609432252,-11457.531,0.00010866,2]
[335930557,1724609432261,-1500.0,0.00010867,2]
[335930558,1724609432271,-1500.0,0.00010878,2]
[335930559,1724609432280,-288.58645643,0.00010888,2]
[335930560,1724609432290,-2842.93384209,0.00010888,2]
[335930561,1724609432299,-1771.9438,0.0001089,2]
[335930562,1724609432310,-292.76862131,0.0001089,2]
[335930563,1724609432319,-155.0,0.0001089,2]
[335930564,1724609432329,-312.24894488,0.00010898,2]
[335930565,1724609432339,-312.24894487,0.00010899,2]
[335930566,1724609432349,-4384.1953,0.00010899,2]
[335930567,1724609432359,-269.26938111,0.00010899,2]
[335930568,1724609432368,-8996.34352721,0.00010899,2]
[335930569,1724609432377,-8996.34352714,0.00010899,2]
[335930570,1724609432397,-8996.34352714,0.00010899,2]
[335930571,1724609432411,-8996.34352714,0.00010899,2]
[335930572,1724609432421,-8996.34352714,0.00010899,2]
[335930573,1724609432432,-8996.34352714,0.00010899,2]
[335930574,1724609432442,-8996.34352714,0.00010899,2]
[335930575,1724609432452,-8996.34352714,0.00010899,2]
[335930576,1724609432467,-8996.34352714,0.00010899,2]
[335930577,1724609432478,-155.0,0.00010899,2]
[335930578,1724609432488,-431.6752575,0.00010899,2]
[335930579,1724609432497,-312.24894487,0.00010899,2]
[335930580,1724609432507,-10255.50598418,0.000109,7]
[335930581,1724609432516,-158.64831519,0.000109,2]
[335930582,1724609432526,-186.51,0.000109,2]
[335930583,1724609432535,-421.43,0.000109,2]
[335930584,1724609432545,-790.69,0.000109,2]
[335930585,1724609432555,-550.83982292,0.000109,2]
[335930586,1724609432565,-8996.34352714,0.000109,2]
[335930587,1724609432574,-165.47052963,0.000109,2]
[335930588,1724609432584,-165.47052963,0.000109,2]
[335930589,1724609432594,-15108.94322506,0.000109,2]
[335930590,1724609432603,-1000.0,0.000109,2]
[335930591,1724609432612,-312.24894487,0.000109,2]
[335930592,1724609432623,-2722.7021723,0.000109,2]
[335930593,1724609432632,-1500.0,0.00010922,2]
[335930594,1724609432641,-1500.0,0.00010932,2]
[335930595,1724609432651,-12513.372979,0.00010949,2]
[335930596,1724609432660,-150.0,0.0001095,2]
[335930597,1724609432670,-150.0,0.00010952,2]
[335930598,1724609432680,-150.0,0.00010952,2]
[335930599,1724609432690,-500.0,0.00010958,2]
[335930600,1724609432700,-500.0,0.00010958,2]
[335930601,1724609432710,-500.0,0.00010958,2]
[335930602,1724609432722,-500.0,0.00010958,2]
[335930603,1724609432732,-500.0,0.00010958,2]
[335930604,1724609432742,-500.0,0.00010958,2]
[335930605,1724609432752,-500.0,0.00010958,2]
[335930606,1724609432761,-500.0,0.00010958,2]
[335930607,1724609432771,-500.0,0.00010958,2]
[335930608,1724609432780,-500.0,0.00010958,2]
[335930609,1724609432790,-500.0,0.00010958,2]
[335930610,1724609432800,-500.0,0.00010958,2]
[335930611,1724609432810,-500.0,0.00010958,2]
[335930612,1724609432820,-500.0,0.00010958,2]
[335930613,1724609432829,-500.0,0.00010958,2]
[335930614,1724609432840,-500.0,0.00010958,2]
[335930615,1724609432850,-500.0,0.00010958,2]
[335930616,1724609432859,-500.0,0.00010958,2]
[335930617,1724609432869,-3675.14,0.00010958,2]
[335930618,1724609432878,-500.0,0.00010958,2]
[335930619,1724609432888,-500.0,0.00010958,2]
[335930620,1724609432897,-500.0,0.00010958,2]
[335930621,1724609432907,-1746.58,0.00010958,2]
[335930622,1724609432917,-500.0,0.00010958,2]
[335930623,1724609432927,-500.0,0.00010958,2]
[335930624,1724609432937,-275.32,0.00010958,2]
[335930625,1724609432946,-548.21,0.00010958,2]
[335930626,1724609432957,-161.46,0.00010958,2]
[335930627,1724609432966,-514.53,0.00010958,2]
[335930628,1724609432981,-500.0,0.00010958,2]
[335930629,1724609432990,-500.0,0.00010958,2]
[335930630,1724609433000,-500.0,0.00010958,2]
[335930631,1724609433010,-500.0,0.00010958,2]
[335930632,1724609433020,-1484.77,0.00010958,2]
[335930633,1724609433030,-3261.52,0.00010958,2]
[335930634,1724609433039,-500.0,0.00010958,2]
[335930635,1724609433049,-500.0,0.00010958,2]
[335930636,1724609433059,-536.80823849,0.00010958,2]
[335930637,1724609433069,-500.0,0.00010958,2]
[335930638,1724609433079,-958.35,0.00010958,2]
[335930639,1724609433089,-3616.15,0.00010958,2]
[335930640,1724609433098,-500.0,0.00010958,2]
[335930641,1724609433107,-500.0,0.00010958,2]
[335930642,1724609433117,-500.0,0.00010958,2]
[335930643,1724609433128,-4269.1,0.00010958,2]
[335930644,1724609433138,-500.0,0.00010958,2]
[335930645,1724609433148,-500.0,0.00010958,2]
[335930646,1724609433158,-500.0,0.00010958,2]
[335930647,1724609433168,-536.03,0.00010958,2]
[335930648,1724609433178,-500.0,0.00010958,2]
[335930649,1724609433188,-157.44,0.00010959,2]
[335930650,1724609433197,-158.07,0.00010959,2]
[335930651,1724609433206,-150.0,0.00010959,2]
[335930652,1724609433216,-1500.0,0.00010959,2]
[335930653,1724609433234,-250.0,0.00010959,2]
[335930654,1724609433243,-587.14,0.00010959,2]
[335930655,1724609433253,-2000.0,0.00010959,2]
[335930656,1724609433263,-151.125835,0.00010966,2]
[335930657,1724609433273,-200.0,0.00010973,2]
[335930658,1724609433282,-200.0,0.00010973,2]
[335930659,1724609433293,-15514.75753766,0.00010979,2]
[335930660,1724609433303,-789.79090679,0.00010989,2]
[335930661,1724609433313,-150.85,0.00010989,2]
[335930662,1724609433323,-789.79090679,0.0001099,2]
[335930663,1724609433333,-789.79090679,0.0001099,2]
[335930664,1724609433342,-185.411,0.00010994,2]
[335930665,1724609433352,-165.86544256,0.00010996,2]
[335930666,1724609433362,-500.0,0.00010997,2]
[335930667,1724609433372,-1734.23,0.00010997,2]
[335930668,1724609433382,-500.0,0.00010997,2]
[335930669,1724609433395,-500.0,0.00010997,2]
[335930670,1724609433405,-500.0,0.00010997,2]
[335930671,1724609433414,-500.0,0.00010997,2]
[335930672,1724609433424,-527.98,0.00010997,2]
[335930673,1724609433438,-540.59,0.00010997,2]
[335930674,1724609433448,-500.0,0.00010997,2]
[335930675,1724609433457,-354.65925411,0.00010998,2]
[335930676,1724609433471,-500.0,0.00010998,2]
[335930677,1724609433481,-500.0,0.00010998,2]
[335930678,1724609433491,-359.34223029,0.00010998,2]
[335930679,1724609433500,-500.82463459,0.00010998,2]
[335930680,1724609433510,-500.0,0.00010998,2]
[335930681,1724609433520,-500.0,0.00010998,2]
[335930682,1724609433530,-500.0,0.00010998,2]
[335930683,1724609433540,-500.0,0.00010998,2]
[335930684,1724609433549,-500.0,0.00010998,2]
[335930685,1724609433559,-500.0,0.00010998,2]
[335930686,1724609433569,-351.72909531,0.00010998,2]
[335930687,1724609433579,-500.0,0.00010998,2]
[335930688,1724609433588,-500.0,0.00010998,2]
[335930689,1724609433598,-400.47799286,0.00010998,2]
[335930690,1724609433608,-500.0,0.00010998,2]
[335930691,1724609433617,-500.0,0.00010998,2]
[335930692,1724609433627,-500.0,0.00010998,2]
[335930693,1724609433636,-500.0,0.00010998,2]
[335930694,1724609433646,-405.0,0.00010998,2]
[335930695,1724609433656,-1734.23,0.00010998,2]